Cogmind - Beta 16 @@@ ROGUE MODE // 2025.12.19 @ 14:43:16 Player: PE-P51 Result: Destroyed by RS-HLX(R) with Subdweller Laser Performance ------------- Evolutions (0) 0 Regions Visited (2) 400 Robots Destroyed (31) 155 Value Destroyed (757) 757 Prototype IDs (16) 320 Alien Tech Used (0) 0 Bonus (0) 0 TOTAL SCORE: 1632 Bonus ------- None Cogmind --------- Core Integrity 0/250 Matter 288/300 Energy 233/265 System Corruption 0% Temperature Warm (166) Movement Treading (240) Ox1 Location -10/Subcaves Parts ------- > --- POWER (1) -------- Reinforced Ion Engine > --- PROPULSION (2) --- Light Treads Light Treads > --- UTILITY (2) ------ High-capacity Storage Unit Seismic Detector > --- WEAPON (2) ------- Subdweller Beam Cannon Subdweller Beam Cannon > --- INVENTORY (20) --- Light Ion Engine Reinforced Ion Engine Subdweller Power Source Subdweller Power Source Aluminum Leg Aluminum Leg Large Storage Unit Structural Scanner Subdweller Optics Makeshift System Shield Trap Extractor (0/4) Trap Extractor (0/4) Power Bank Medium Laser Improved Assault Rifle Improved Assault Rifle Slug Cannon Grenade Launcher Datajack Mining Laser Peak State ------------ > --- POWER ------------ Reinforced Ion Engine > --- PROPULSION ------- Light Treads Subdweller Monowheel > --- UTILITY ---------- High-capacity Storage Unit Structural Scanner > --- WEAPON ----------- Subdweller Machine Gun Slug Cannon > --- INVENTORY -------- Light Ion Engine Reinforced Ion Engine Subdweller Power Source Subdweller Power Source Aluminum Leg Aluminum Leg Large Storage Unit Subdweller Optics Seismic Detector Trap Extractor Trap Extractor Medium Laser Medium Laser Subdweller Laser Improved Assault Rifle Improved Assault Rifle Improved Assault Rifle Grenade Launcher Datajack Mining Laser [Rating: 16] Favorites ----------- Power Reinforced Ion Engine Engine Reinforced Ion Engine Propulsion Light Treads Treads Light Treads Leg Aluminum Leg Wheel Subdweller Monowheel Utility High-capacity Storage Unit Device Structural Scanner Storage High-capacity Storage Unit Weapon Improved Assault Rifle Energy Gun Subdweller Laser Energy Cannon Subdweller Beam Cannon Ballistic Gun Improved Assault Rifle Ballistic Cannon Slug Cannon Launcher Grenade Launcher Special Weapon Mining Laser Special Melee Weapon Datajack Build | -11 -10 -10 ------- Run | Yrd Mat Sub Slots Evolved . | . . . Power . | . . . Propulsion . | . . . Utility . | . . . Weapon . | . . . Parts Attached 29 | . 13 16 Power 3 | . 2 1 Engine 3 | . 2 1 Core . | . . . Reactor . | . . . Propulsion 6 | . 2 4 Treads 2 | . . 2 Leg 2 | . 2 . Wheel 2 | . . 2 Hover . | . . . Flight . | . . . Utility 5 | . 4 1 Device 3 | . 2 1 Storage 2 | . 2 . Processor . | . . . Hackware . | . . . Protection . | . . . Artifact . | . . . Weapon 15 | . 5 10 Energy Gun 1 | . . 1 Energy Cannon 2 | . . 2 Ballistic Gun 5 | . 4 1 Ballistic Cannon 3 | . . 3 Launcher 1 | . 1 . Special Weapon 2 | . . 2 Impact Weapon . | . . . Slashing Weapon . | . . . Piercing Weapon . | . . . Special Melee Weapon 1 | . . 1 Unidentified Prototypes 2 | . 2 . Parts Lost 3 | . . 3 Power . | . . . Propulsion 1 | . . 1 Utility . | . . . Weapon 2 | . . 2 Highest Loss Streak 2 | . . 2 To Critical Strikes . | . . . Average Backups 17 | . 12 19 Power 3 | . 2 3 Propulsion 2 | . 2 2 Utility 4 | . 2 5 Weapon 6 | . 4 7 Tool/Special . | . . . Unused Backups 26 | . 12 14 Power 9 | . 5 4 Propulsion 5 | . 4 1 Utility 7 | . 1 6 Weapon 5 | . 2 3 Tool/Special . | . . . Average Slot Usage (%) 99 | . 99 99 Engine 14 | . 14 14 Treads 15 | . . 23 Leg 11 | . 28 2 Device 13 | . 13 14 Storage 14 | . 14 14 Energy Gun 2 | . . 3 Energy Cannon 1 | . . 2 Ballistic Gun 17 | . 26 13 Ballistic Cannon 5 | . . 8 Peak Build Rating 16 | . 15 16 Average Rating 14 | . 13 14 On Entrance 8 | 6 6 14 Avg Prop Armor Cover (%) 9 | . . 9 Naked Turns . | . . . Heaviest Build 67 | 14 57 67 Greatest Support 40 | 20 20 40 Greatest Overweight (x) 3 | . 2 3 Average Overweight (x) 1 | . 1 1 Largest Inventory Capacity 20 | . 20 20 Average Capacity 18 | . 16 20 Most Carried 20 | . 20 20 Average Carried 17 | . 12 19 Final Capacity 20 | 8 20 20 Final Carried 20 | 6 20 20 Class Distribution -------------------- 100% | Mutant Dominant Class ---------------- Mutant | -10/Materials Mutant | -10/Subcaves Resources | -11 -10 -10 ----------- Run | Yrd Mat Sub Matter Collected 1103 | 200 316 587 Remotely . | . . . Salvage Created 780 | . 407 373 Parts 62 | . 37 25 Haulers Intercepted 1 | . 1 . Recyclers Shooed . | . . . Parts Field Recycled . | . . . Retrieved Matter . | . . . Parts Self-Destructed 13 | . . 13 Prevented . | . . . Parts Restored . | . . . Kills | -11 -10 -10 ------- Run | Yrd Mat Sub Combat Hostiles Destroyed 25 | . 13 12 Guns 12 | . 7 5 Cannons 4 | . . 4 AOE 9 | . 6 3 Classes Destroyed 7 | . 6 1 Worker 1 | . 1 . Builder 2 | . 2 . Hauler 1 | . 1 . Watcher 2 | . 2 . Swarmer 9 | . 6 3 Grunt 9 | . 7 2 Subdweller 7 | . . 7 Best Kill Streak 4 | . 4 3 Combat Bots Only 4 | . 4 3 Max Kills in Single Turn 2 | . 2 1 Gunslinging . | . . . Exploded 2 | . 2 1 Melee . | . . . Uniques/NPCs Destroyed . | . . . Combat | -11 -10 -10 -------- Run | Yrd Mat Sub Hostile Shots Fired 106 | . 64 42 Missed 23 | . 16 7 Hits 83 | . 48 35 Projectile 83 | . 48 35 AOE 5 | . . 5 Critical Strikes 2 | . . 2 Damage Taken 1464 | . 527 937 Core 259 | . 83 176 Absorbed by Shields . | . . . Regen/Repaired (Parts) 78 | . 78 . Core Remaining (%) 100 | 100 . . Volleys Fired 92 | . 33 59 Largest 2 | . 2 2 Hottest 160 | . 46 160 Shots Fired 150 | . 56 94 Gun 90 | . 46 44 Cannon 45 | . . 45 Launcher 14 | . 10 4 Special 1 | . . 1 Kinetic 115 | . 46 69 Thermal 21 | . . 21 Explosive 14 | . 10 4 Electromagnetic . | . . . Robot Hit Streak 18 | . 9 18 Robot Miss Streak 2 | . 2 2 Penetration Max . | . . . Secondary Targets 4 | . 4 . Max Gunslinging Chain 1 | . 1 . Shots Hit Robots 78 | . 34 44 Core Hits 47 | . 28 19 Critical Kills . | . . . Critical Parts Destroyed . | . . . Critical Strikes 2 | . . 2 Destroy 2 | . . 2 Melee Attacks . | . . . Impact . | . . . Slashing . | . . . Piercing . | . . . Sneak Attacks . | . . . Combat Hostiles . | . . . Follow-up Attacks . | . . . Damage Inflicted 2043 | . 1022 1021 Guns 929 | . 500 429 Cannons 361 | . . 361 Explosions 737 | . 506 231 Melee . | . . . Ramming 16 | . 16 . Kinetic 1056 | . 500 556 Thermal 234 | . . 234 Explosive 737 | . 506 231 Electromagnetic . | . . . Impact . | . . . Slashing . | . . . Piercing . | . . . Highest Corruption . | . . . Average Corruption . | . . . Corruption Purged . | . . . Corruption Blocked . | . . . Overload Shots . | . . . Overflow Damage 26 | . 26 . Projectiles . | . . . Explosions 26 | . 26 . Melee . | . . . Knockbacks 2 | . 1 1 Impact 1 | . 1 . Kinetic 1 | . . 1 Secondary . | . . . Self-Inflicted Damage 76 | . 76 . Shots 4 | . 4 . Rammed . | . . . Targets Rammed 5 | . 5 . Kicked 5 | . 5 . Crushed . | . . . Highest Temperature 160 | . 65 160 Average Temperature 38 | . 30 49 Received Heat Transfer 225 | . 135 90 Siege Activations . | . . . Martial Activations . | . . . Shielding Activations . | . . . Robots Disrupted . | . . . Combat Hostiles . | . . . Robots Corrupted . | . . . Combat Hostiles . | . . . Parts Fried . | . . . Impact Corruptions . | . . . Robots Melted . | . . . Combat Hostiles . | . . . Parts Melted . | . . . Heat Transferred 298 | . . 298 Parts Sabotaged . | . . . Parts Stolen . | . . . Parts Stripped . | . . . Power Chain Reactions . | . . . Alert | -11 -10 -10 ------- Run | Yrd Mat Sub Maximum Alert Level . | . . . Low Security (%) 100 | . 100 . Level 1 . | . . . Level 2 . | . . . Level 3 . | . . . Level 4 . | . . . Level 5 . | . . . High Security . | . . . Max Security . | . . . Peak Influence 151 | . 151 . Initial . | . . . Average 39 | . 39 . Influence Increases 590 | . 470 120 Destroy 0b10 Robot/C 360 | . 260 100 Destroy 0b10 Robot/NC 30 | . 30 . Destroy Leader 86 | . 66 20 Successful Hack 22 | . 22 . Select Force Hacks 30 | . 30 . Disable Machine 15 | . 15 . Destroy Structure 47 | . 47 . Influence Decreases 590 | . 470 120 Time Decay 580 | . 460 120 Lost Ally 10 | . 10 . Squads Dispatched 3 | . 3 . Investigation 3 | . 3 . Extermination . | . . . Reinforcement . | . . . Assault . | . . . Garrison . | . . . Intercept . | . . . Searches Triggered . | . . . Construction Impeded . | . . . Haulers Reinforced . | . . . Active Scanning Responses . | . . . Cargo Convoy Interrupts . | . . . Stealth | -11 -10 -10 --------- Run | Yrd Mat Sub Distress Signals 2 | . 2 . Communications Jammed . | . . . Distress Signals . | . . . Times Spotted 36 | . 23 13 Peak Tracking Total 5 | . 5 3 Tactical Retreats . | . . . Traps | -11 -10 -10 ------- Run | Yrd Mat Sub Traps Triggered 3 | . . 3 Indirectly . | . . . Trap Hack Attempts 141 | . . 141 Triggered . | . . . Disarmed 2 | . . 2 Reprogrammed 11 | . . 11 Reused . | . . . Traps Extracted . | . . . Installed . | . . . Triggered . | . . . Machines | -11 -10 -10 ---------- Run | Yrd Mat Sub Machines Disabled 2 | . 1 1 Max in Single Turn 1 | . 1 1 Machines Repaired . | . . . Machines Dismantled . | . . . Machines Sabotaged . | . . . Overloaded Fab Kills . | . . . Hacking | -11 -10 -10 --------- Run | Yrd Mat Sub Machines Accessed 14 | . 10 4 Terminals 8 | . 8 . Fabricators . | . . . Repair Stations 1 | . 1 . Recycling Units 1 | . 1 . Scanalyzers . | . . . Garrison Access . | . . . Total Hacks 39 | . 30 9 Successful 21 | . 12 9 Failed 18 | . 18 . Catastrophic 3 | . 3 . Database Lockouts . | . . . Manual 8 | . 8 . Terminals 25 | . 25 . Fabricators . | . . . Repair Stations 3 | . 3 . Recycling Units 2 | . 2 . Scanalyzers . | . . . Garrison Access . | . . . Terminal Hacks 17 | . 8 9 Record 6 | . . 6 Robot Analysis 1 | . 1 . Prototype ID Bank 1 | . 1 . Open Door 1 | . . 1 Locate Traps 2 | . 2 . Dispatch Records 1 | . 1 . Hauler Manifests 2 | . 2 . Zone Layout 1 | . 1 . Proto ID Catalog 1 | . . 1 Release Object 1 | . . 1 Fabricator Hacks . | . . . Repair Station Hacks 2 | . 2 . Scan Component 1 | . 1 . Repair 1 | . 1 . Recycling Unit Hacks . | . . . Scanalyzer . | . . . Garrison Access Hacks . | . . . Unauthorized Hacks 2 | . 2 . Terminals 1 | . 1 . Assimilate 1 | . 1 . Fabricators . | . . . Repair Stations . | . . . Recycling Units 1 | . 1 . Tunnel 1 | . 1 . Scanalyzers . | . . . Garrison Access . | . . . Data Cores Recovered . | . . . Used . | . . . Hacking Detections 9 | . 9 . Full Trace Events 3 | . 3 . Feedback Events . | . . . Feedback Blocked . | . . . Robot Schematics Acquired . | . . . Robots Built . | . . . Authchips . | . . . Time . | . . . Total Robot Build Rating . | . . . Part Schematics Acquired . | . . . Parts Built . | . . . Authchips . | . . . Time . | . . . Total Part Build Rating . | . . . Part Studies Acquired . | . . . Parts Repaired 1 | . 1 . Time 51 | . 51 . Parts Recycled . | . . . Recycled Matter . | . . . Retrieved Matter . | . . . Retrieved Components . | . . . Parts Scanalyzed . | . . . Part Schematics Acquired . | . . . Parts Damaged . | . . . Bothacking | -11 -10 -10 ------------ Run | Yrd Mat Sub Used RIF Installer . | . . . Robots Hacked . | . . . Non-combat . | . . . Combat . | . . . Robot Hacks Applied . | . . . Relay Couplers Released . | . . . Fabnet Peak Effective % . | . . . Robots Rewired . | . . . Allies Hacked . | . . . Hacks Repelled . | . . . Allies | -11 -10 -10 -------- Run | Yrd Mat Sub Total Allies 1 | . 1 . Largest Group 1 | . 1 . Highest-Rated Group 10 | . 10 . Highest-Rated Ally 10 | . 10 . Total Orders . | . . . Ally Attacks . | . . . Total Damage . | . . . Kills . | . . . Allies Corrupted . | . . . Allies Melted . | . . . Intel | -11 -10 -10 ------- Run | Yrd Mat Sub Active Infowar (turns) 6030 | . 2069 3961 Structural 4908 | . 2069 2839 Seismic 1122 | . . 1122 Robot Analysis Total 1 | . 1 . Derelict Logs Recovered 2 | . . 2 Drone Launches . | . . . Drone Recoveries . | . . . Exploration | -11 -10 -10 ------------- Run | Yrd Mat Sub Turns Passed 6201 | . 2240 3961 Spaces Moved 2337 | 1 894 1442 Core . | . . . Treads 1100 | . . 1100 Legs 966 | 1 894 71 Wheels 271 | . . 271 Hover . | . . . Flight . | . . . Fastest Speed 120 | 120 120 130 Average Speed 223 | 120 225 222 Slowest Speed 400 | 120 260 400 Overloaded Moves . | . . . Propulsion Burnouts . | . . . Robots Hopped . | . . . Potential Cave-ins . | . . . Cave-ins Triggered . | . . . Exploration Rate (%) 56 | 1 100 68 Regions Visited 2 Branch Regions 1 Pre-discovered Areas 3 | . 1 2 Known Exits Taken . | . . . Unknown Exits Taken 2 | 1 1 . Scrap Searched 7 | . . 7 Spaces Dug 6 | . 5 1 Terrain Destroyed 54 | . 42 12 Melee . | . . . Projectile 6 | . . 6 AOE 48 | . 42 6 Terrain Rammed . | . . . Walls Destroyed . | . . . Machines Disabled . | . . . Actions | -11 -10 -10 --------- Run | Yrd Mat Sub Total 3141 | . 1058 2083 Wait 479 | . 74 405 Move 2335 | . 893 1442 Hop . | . . . Pick Up 29 | . 23 6 Fast Attach 3 | . 1 2 Attach 3 | . 1 2 Detach . | . . . Swap 34 | . 14 20 Drop 20 | . 14 6 Fire 92 | . 33 59 Melee . | . . . Ram . | . . . Kick 5 | . 5 . Crush . | . . . Escape Stasis . | . . . Rewire . | . . . Trap 141 | . . 141 Miscellaneous . | . . . Route ------- -11/Scrapyard -10/Materials (discovered 6 exits: [*Mat x3] / [*Min x2] / *Sub) -10/Subcaves (discovered 2 exits: [*Mat x2]) History --------- Turn | Location | Event 1 | -11/Scrapyard | Discovered new exit (range 0) 1 | -11/Scrapyard | Entered Materials 242 | -10/Materials | Discovered new exit (range 13) 325 | -10/Materials | Build established: Mutant 733 | -10/Materials | Discovered new exit (range 15) 1177 | -10/Materials | Repaired Imp. Assault Rifle 1255 | -10/Materials | Discovered new exit (range 13) 1735 | -10/Materials | Discovered new exit (range 15) 1740 | -10/Materials | Discovered new exit (range 5) 2163 | -10/Materials | Discovered new exit (range 10) 2241 | -10/Materials | Entered Subcaves 2632 | -10/Subcaves | Visited Clippyterm 2636 | -10/Subcaves | Learned location of Extension (-5) 2636 | -10/Subcaves | Learned 40 Factory zone layouts 2650 | -10/Subcaves | Core integrity fell below 50% 3901 | -10/Subcaves | Core integrity fell below 20% 4432 | -10/Subcaves | Visited 4L-MR0's lab 4464 | -10/Subcaves | Found Power Bank 4609 | -10/Subcaves | Discovered new exit (range 9) 5337 | -10/Subcaves | Shifting Twisted Machinery released Battle Cannon 5444 | -10/Subcaves | A swath of the cavern ceiling suddenly collapsed 5567 | -10/Subcaves | Discovered new exit (range 6) 5720 | -10/Subcaves | Shifting Twisted Machinery released Spk. Treads 5740 | -10/Subcaves | Shifting Twisted Machinery released Sub. Optics 6194 | -10/Subcaves | Ambushed by Subdweller buried in earth 6202 | -10/Subcaves | Destroyed by RS-HLX(R) with Subdweller Laser Last Messages --------------- 05871_ Acquired 1 matter. 05873_ Subatomizers dissect the Sub. Monowheel. 05883_ Searching scrap... 05883_ Found Sub. Beam Cannon. 05883_ Found Sub. Shrapnel Launcher. 05883_ Found 65 Matter. 05884_ Acquired 54 matter. 05885_ Searching scrap... 05885_ Found Sub. Beam Cannon. 05885_ Found 32 Matter. 05893_ Acquired Sub. Beam Cannon. 05900_ Dropped Imp. Assault Rifle. 05901_ Acquired Slug Cannon. 05925_ Subatomizers dissect the Sub. Power Source. 05938_ Acquired 8 matter. 06081_ 0G-3X8(u) tweaks Twisted Machinery. 06168_ Subatomizers dissect the Disposable Heat Sink. 06189_ DO-8Y2(u) tweaks Twisted Machinery. 06191_ Subatomizers dissect the Disposable Heat Sink. 06195_ RS-HLX(R): "GOODGOOD!" Map ----- +----------------------------------------------------+ | ?????????????????????????????????????????????????? | | ??????###???#####??####??????????????????????????? | | ??##### #??## #?## ##????##???????????????????? | | ?## #?## ### #????# ####???###?????????? | | ?# ### """" #????# #??## ####??????? | | ## ## " #????# #??# #??????? | | # ##" " " ##????# #??# ##??????? | | ### ###" " ""##???# #?## #???????? | | ##?## "" !#?### ### #???????? | | ###???##" "### #???????? | | ## ##??????## " """ ##??????? | | ##### #####????# """"""""""" ##?????? | | ##### # #####""""""""""""" #?????? | | ## # "" """## = """ ####??? | | ##### "" ### "#### #??? | | ######???## "## #?# ##?#" #### #??? | | ##????????# ##### ##? """"" #??## #######??? | | ##????????# ##??###??####""" ??# #???? | | #????????## ###??###?###""""##""#?## # #???? | | #?????????## ##?# ## ""#""####??### # #???? | | #??????????# ### """"""#?????? ## ###??? | | ##??????????## # """"" "##??# ## # ###? | | ?????????##### #"""#?#"" """#?#### ### #? | | ?????????#"%## "" ###?#" "???# ## ## ##? | | ?????????#[%### u #"# ##?#" # #? | | ?????????#]##"#= @ #### ##? | | ?????????# # &! ##R##### # # ## | | ?????????#"& ##< ##?# #??## < ### ## | | ?????????######## #???##???#### ### # | | ????????????????########???????????###### #### # | | ????????????????????????????????????????# ##??## | | ????????????????????????????????????????# #????## | | #######?????????????????????????????????# #?????# | | #######?????????????????????????????????# #????## | | """""##?????????????????????????????????# ##### % | | X""""##?????????????????????????????????# % | | & ##?????????????????????????????????##### | | ##?????????????????????????????????????## # | | """ "##?????????????????????????????????????## | | ### ###?????????????????????????????????????# | | #"" "##????????????????????????????????????## | | # X###???????????????????????????????????# | | ####?????????????????????????????????###### | | #### ##???????##############???################# | | ## ##??????###############??######### % ## | | ## ###??###### ### "####### ## % % # | | ########## %"" ####### ## ##### # | | ###### ### " ## "### ###??#"" | | !# # ###& #########" | | & ] "" & ### #"###" | +----------------------------------------------------+ Best States ------------- Heat Dissipation 25 Energy Generation 14 Energy Capacity 280 Matter Stores 300 Matter Capacity 300 Sight Range 16 Terrain Scan Density 10 Evasion (%) 55 Recoil Reduction 2 Trap Extractor Capacity 4 Item Schematics ----------------- None Robot Schematics ------------------ None Fabricated ------------ Nothing Repaired ---------- Imp. Assault Rifle | 44% | -10/Materials Studied --------- None Alien Tech Used ----------------- None Achievements -------------- None Challenges ------------ None Game ------ Seed WeaponsAmuletDriveblaster Manual? 0 Play Time 00:21:43 Cumulative 204.6 hours Start 2025.12.19 @ 14:22:25 End 2025.12.19 @ 14:43:16 Sessions 1 Manual Loads 0 Difficulty Rogue Special Mode None Game No. 282 Rogue 281 Adventurer 1 Explorer 0 Win Type - Total 2 Types 1/0/0/1/0/0/0/0/0/0 Lore% 66 Gallery% 62 Achievement% 55 Wizard Run 0 Options --------- Layout 0 ASCII 0 Keyboard 0 Movement Numpad Keybinds 0 Fullscreen 1 Font 24/Smallcaps Map View 76x50 Zoom Use 0% Tactical HUD 1 Map Filters NONE Filters NONE Steam 1 RUN: 9803ebd2-852f-419a-ab03-b0ba4c633e5b